{"text_format":"1","workbook":"xlsx","n_sheets":2,"sheets":["Цены","Лист1"],"not_rendered":{"charts":0,"images":0,"macros":1,"external_links":0,"defined_names":1,"comments":0,"pivot_tables":0},"unopened":[],"bounds":{"document_bytes":16777216,"sheet_cells":100000,"rows_first":2000,"rows_last":500,"rows_between":2000,"halvings":0,"cell_chars":16384,"cell_head_chars":4096},"cells_cut":0,"cells_raw":0,"read":"whole","date_system":"1900"}

{"sheet":"Цены","index":0,"n_rows":786,"n_cols":10,"rows_kept":786,"cut":false,"hidden":false,"merged":[]}
[]
[]
["Расходный материал","Категория","Ед.изм.","Цена","Вес (ед.изм.)","Объём","Длина","Ширина","Статус","Возможные поставщики"]
["Анкер болт М10х100мм","в производстве","шт.",16.899999999999999,5.2499999999999998E-2,null,null,null,"Деталь"]
["Анкер болт М10х125мм","в производстве","шт.",20.87,0.06,null,null,null,"Деталь"]
["Анкер болт М12х100мм","в производстве","шт.",23.4,4.3999999999999997E-2,null,null,null,"Деталь"]
["Анкер болт М12х120мм","в производстве","шт.",26,9.6000000000000002E-2,null,null,null,"Деталь"]
["Анкер клиновой М12х120 мм","перекупное","шт.",31,0.10780000000000001,null,null,null,"Деталь"]
["Арматура 10 мм","в производстве","м.п.",22.8,null,null,null,null,"Материал"]
["Арматура 14 мм","в производстве","м.п.",42,null,null,null,null,"Материал"]
["Арматура 16 мм","в производстве","м.п.",53,null,null,null,null,"Материал"]
["Баннер на пластике \"Барсук\"","перекупное","м2",3500,null,null,0.95,1.2,"Деталь"]
["Баннер на пластике \"Белка\"","перекупное","м2",3500,null,null,0.75,0.9,"Деталь"]
["Баннер на пластике \"Белый медведь\"","перекупное","м2",3500,null,null,1,2,"Деталь"]
["Баннер на пластике \"Горы, ели\"","перекупное","м2",3500,null,null,8.6,1.2,"Деталь"]
["Баннер на пластике \"Дерево с кустарником\"","перекупное","м2",3500,null,null,2.9,2.6,"Деталь"]
["Баннер на пластике \"Дерево тонкий ствол\"","перекупное","м2",3500,null,null,2.8,2.8,"Деталь"]
["Баннер на пластике \"Дерево\"","перекупное","м2",3500,null,null,1.8,2.7,"Деталь"]
["Баннер на пластике \"Звездочка 1\"","перекупное","м2",3500,null,null,0.35,0.35,"Деталь"]
["Баннер на пластике \"Звездочка 2\"","перекупное","м2",3500,null,null,0.45,0.45,"Деталь"]
["Баннер на пластике \"Звездочка 3\"","перекупное","м2",3500,null,null,0.55000000000000004,0.55000000000000004,"Деталь"]
["Баннер на пластике \"Здание 1\"","перекупное","м2",4500,null,null,3.9,2.7,"Деталь"]
["Баннер на пластике \"Здание 2\"","перекупное","м2",4500,null,null,2.7,2,"Деталь"]
["Баннер на пластике \"Здание 3\"","перекупное","м2",4500,null,null,2.7,3,"Деталь"]
["Баннер на пластике \"Здание 4\"","перекупное","м2",4500,null,null,3.9,2.6,"Деталь"]
["Баннер на пластике \"Здание 5\"","перекупное","м2",4500,null,null,3.9,3,"Деталь"]
["Баннер на пластике \"Иллюминатор\"","перекупное","м2",3500,null,null,0.4,0.4,"Деталь"]
["Баннер на пластике \"Какаду\" расправленные крылья","перекупное","м2",3500,null,null,0.7,0.9,"Деталь"]
["Баннер на пластике \"Кенгуру\"","перекупное","м2",3500,null,null,0.9,0.52,"Деталь"]
["Баннер на пластике \"Кенгуру\" с кенгуренком в сумке","перекупное","м2",3500,null,null,0.9,0.9,"Деталь"]
["Баннер на пластике \"Кит\"","перекупное","м2",3500,null,null,1,2,"Деталь"]
["Баннер на пластике \"Лев с дрессировщиком\"","перекупное","м2",3500,null,null,2,1.8,"Деталь"]
["Баннер на пластике \"Листья\"","перекупное","м2",3500,null,null,0.6,0.8,"Деталь"]
["Баннер на пластике \"Листья\" болшие (входная группа)","перекупное","м2",3500,null,null,2.7,1,"Деталь"]
["Баннер на пластике \"Листья\" малые (входная группа)","перекупное","м2",3500,null,null,0.47,0.47,"Деталь"]
["Баннер на пластике \"Медведь на велосипеде\"","перекупное","м2",3500,null,null,1.1000000000000001,1.55,"Деталь"]
["Баннер на пластике \"Пальма\" + маленькая с раздвоенным стволом","перекупное","м2",3500,null,null,2.8,1.4,"Деталь"]
["Баннер на пластике \"Пальма\" + средняя","перекупное","м2",3500,null,null,2.8,1.4,"Деталь"]
["Баннер на пластике \"Пальма\" двойная большая","перекупное","м2",3500,null,null,2.95,1.85,"Деталь"]
["Баннер на пластике \"Пальма\" двойная средняя","перекупное","м3",3500,null,null,2.2999999999999998,1.45,"Деталь"]
["Баннер на пластике \"Пальма\" толстое основание","перекупное","м2",3500,null,null,2.8,1.3,"Деталь"]
["Баннер на пластике \"Пальма\" толстый ствол","перекупное","м2",3500,null,null,3.2,1.3,"Деталь"]
["Баннер на пластике \"Пингвин\"","перекупное","м2",3500,null,null,2,1,"Деталь"]
["Баннер на пластике \"Пират\"","перекупное","м2",3500,null,null,1.1499999999999999,1.17,"Деталь"]
["Баннер на пластике \"Пиратский флаг\"","перекупное","м2",3500,null,null,1.1000000000000001,0.72499999999999998,"Деталь"]
["Баннер на пластике \"Птичка 1\"","перекупное","м2",3500,null,null,0.35,0.3,"Деталь"]
["Баннер на пластике \"Птичка 2\"","перекупное","м2",3500,null,null,0.35,0.35,"Деталь"]
["Баннер на пластике \"Птичка 3\"","перекупное","м2",3500,null,null,0.35,0.4,"Деталь"]
["Баннер на пластике \"Пушка с ядрами\"","перекупное","м2",3500,null,null,0.83,0.83,"Деталь"]
["Баннер на пластике \"Солнце улыбающееся\"","перекупное","м2",3500,null,null,0.8,0.8,"Деталь"]
["Баннер на пластике \"Стелла\"","перекупное","м2",4500,null,null,3.9,1.5,"Деталь"]
["Баннер на пластике \"Стрекоза\"","перекупное","м2",3500,null,null,0.3,0.3,"Деталь"]
["Баннер на пластике \"Тюлень\"","перекупное","м2",3500,null,null,1,2,"Деталь"]
["Баннер на пластике \"Факир\"","перекупное","м2",3500,null,null,0.99,2,"Деталь"]
["Баннер на пластике \"Юнга пират\"","перекупное","м2",3500,null,null,1.02,0.67,"Деталь"]
["Баннер на пластике \"Юнга пират2\"","перекупное","м2",3500,null,null,1.0900000000000001,0.71,"Деталь"]
["Баннер на пластике волна","перекупное","м2",3500,null,null,12.5,0.7,"Деталь"]
["Баннер на пластике дельфин 1","перекупное","м2",3500,null,null,1.5,1.3,"Деталь"]
["Баннер на пластике дельфин 2","перекупное","м2",3500,null,null,1.135,1.3,"Деталь"]
["Баннер на пластике оборка","перекупное","м2",3500,null,null,1,0.5,"Деталь"]
["Баннер на пластике Эйфелева башня\"","перекупное","м2",4500,null,null,3.9,1.7,"Деталь"]
["Баскетбольный щит с кольцом","в производстве","шт.",3500,null,null,null,null,"Деталь"]
["Батутное полотнно (ПВХ) 2,3*2,7 м","перекупное","шт.",15900,null,null,null,null,"Деталь"]
["Батутное полотнно (ПВХ) 3*2,5 м","перекупное","шт.",15900,null,null,null,null,"Деталь"]
["Батутное полотнно (ПВХ) 3*2,7 м","перекупное","шт.",16400,null,null,null,null,"Деталь"]
["Батутное полотнно (ПВХ) 3*3 м","перекупное","шт.",15970,null,null,null,null,"Деталь"]
["Батутное полотнно (ПВХ) 3*3,8 м","перекупное","шт.",22900,null,null,null,null,"Деталь"]
["Батутное полотнно (ПВХ) 4,3*2,3 м","перекупное","шт.",18700,null,null,null,null,"Деталь"]
["Батутное полотнно (ПВХ) 4,5*3 м","перекупное","шт.",19000,null,null,null,null,"Деталь"]
["Батутное полотнно (ПВХ) 5*3 м","перекупное","шт.",25600,null,null,null,null,"Деталь"]
["Батутное полотнно (ПВХ) 5,0*2 м","перекупное","шт.",21100,null,null,null,null,"Деталь"]
["Батутное полотнно (ПВХ) 5,5*2 м","перекупное","шт.",21900,null,null,null,null,"Деталь"]
["Батутное полотнно (ПВХ) 5,5*3 м","перекупное","шт.",22000,null,null,null,null,"Деталь"]
["Батутное полотнно (ПВХ) 5,7*3 м","перекупное","шт.",27400,null,null,null,null,"Деталь"]
["Батутное полотнно (ПВХ) 6*3 м","перекупное","шт.",30800,null,null,null,null,"Деталь"]
["Батутное полотнно (ПВХ) 6,5*2 м","перекупное","шт.",22900,null,null,null,null,"Деталь"]
["Батутное полотнно (ПВХ) 6,7*3 м","перекупное","шт.",23800,null,null,null,null,"Деталь"]
["Батутное полотнно (ПВХ) 8,5*3 м","перекупное","шт.",29800,null,null,null,null,"Деталь"]
["Батутное полотнно (полуспорт) 2,3*2,7 м","перекупное","шт.",18900,null,null,null,null,"Деталь"]
["Батутное полотнно (полуспорт) 3*2,5 м","перекупное","шт.",20800,null,null,null,null,"Деталь"]
["Батутное полотнно (полуспорт) 3*2,7 м","перекупное","шт.",21700,null,null,null,null,"Деталь"]
["Батутное полотнно (полуспорт) 4,3*2,3 м","перекупное","шт.",36000,null,null,null,null,"Деталь"]
["Батутное полотнно (полуспорт) 5*2 м","перекупное","шт.",30250,null,null,null,null,"Деталь"]
["Батутное полотнно (полуспорт) 5*2,5 м","перекупное","шт.",31000,null,null,null,null,"Деталь"]
["Батутное полотнно (полуспорт) 6*2 м","перекупное","шт.",36300,null,null,null,null,"Деталь"]
["Батутное полотнно (спорт) 5*3 м","перекупное","шт.",76900,null,null,null,null,"Деталь"]
["Батутное полотно (ПВХ) 10*3 м","перекупное","шт.",35400,null,null,null,null,"Деталь"]
["Батутное полотно (ПВХ) 2,2*2,2 м","перекупное","шт.",14800,null,null,null,null,"Деталь"]
["Батутное полотно (ПВХ) 2,25*2,1 м","перекупное","шт.",10100,null,null,null,null,"Деталь"]
["Батутное полотно (ПВХ) 2,3*2,7 м","перекупное","шт.",15900,null,null,null,null,"Деталь"]
["Батутное полотно (ПВХ) 2,5*2,5 м","перекупное","шт.",14700,null,null,null,null,"Деталь"]
["Батутное полотно (ПВХ) 2,6*1,9 м","перекупное","шт.",11100,null,null,null,null,"Деталь"]
["Батутное полотно (ПВХ) 2,6*2,6 м","перекупное","шт.",15300,null,null,null,null,"Деталь"]
["Батутное полотно (ПВХ) 3*2,1 м","перекупное","шт.",14800,null,null,null,null,"Деталь"]
["Батутное полотно (ПВХ) 3*2,5 м","перекупное","шт.",15900,null,null,null,null,"Деталь"]
["Батутное полотно (ПВХ) 3*2,7 м","перекупное","шт.",16400,null,null,null,null,"Деталь"]
["Батутное полотно (ПВХ) 3*2,8 м","перекупное","шт.",15800,null,null,null,null,"Деталь"]
["Батутное полотно (ПВХ) 3*3 м","перекупное","шт.",15970,null,null,null,null,"Деталь"]
["Батутное полотно (ПВХ) 3*3,8 м","перекупное","шт.",22900,null,null,null,null,"Деталь"]
["Батутное полотно (ПВХ) 4,3*2,3 м","перекупное","шт.",18700,null,null,null,null,"Деталь"]
["Батутное полотно (ПВХ) 4,5*3 м","перекупное","шт.",19000,null,null,null,null,"Деталь"]
["Батутное полотно (ПВХ) 5*3 м","перекупное","шт.",25600,null,null,null,null,"Деталь"]
["Батутное полотно (ПВХ) 5,2*3 м","перекупное","шт.",25900,null,null,null,null,"Деталь"]
["Батутное полотно (ПВХ) 5,5*2 м","перекупное","шт.",25600,null,null,null,null,"Деталь"]
["Батутное полотно (ПВХ) 5,5*3 м","перекупное","шт.",26100,null,null,null,null,"Деталь"]
["Батутное полотно (ПВХ) 5,7*3 м","перекупное","шт.",27400,null,null,null,null,"Деталь"]
["Батутное полотно (ПВХ) 6*3 м","перекупное","шт.",26900,null,null,null,null,"Деталь"]
["Батутное полотно (ПВХ) 6,5*2 м","перекупное","шт.",22900,null,null,null,null,"Деталь"]
["Батутное полотно (ПВХ) 6,7*3 м","перекупное","шт.",23800,null,null,null,null,"Деталь"]
["Батутное полотно (ПВХ) 8,5*3 м","перекупное","шт.",29800,null,null,null,null,"Деталь"]
["Батутное полотно (ПВХ)4*3 м","перекупное","шт.",17850,null,null,null,null,"Деталь"]
["Батутное полотно (полуспорт) 2*2 м","перекупное","шт.",14700,null,null,null,null,"Деталь"]
["Батутное полотно (полуспорт) 2,13*2,4 м","перекупное","шт.",17200,null,null,null,null,"Деталь"]
["Батутное полотно (полуспорт) 2,25*2,1 м","перекупное","шт.",16400,null,null,null,null,"Деталь"]
["Батутное полотно (полуспорт) 2,3*2,7 м","перекупное","шт.",18900,null,null,null,null,"Деталь"]
["Батутное полотно (полуспорт) 2,4*2,8 м","перекупное","шт.",19780,null,null,null,null,"Деталь"]
["Батутное полотно (полуспорт) 2,5*2,5 м","перекупное","шт.",18300,null,null,null,null,"Деталь"]
["Батутное полотно (полуспорт) 2,6*2,6 м","перекупное","шт.",19100,null,null,null,null,"Деталь"]
["Батутное полотно (полуспорт) 3*2,5 м","перекупное","шт.",20800,null,null,null,null,"Деталь"]
["Батутное полотно (полуспорт) 3*2,7 м","перекупное","шт.",21700,null,null,null,null,"Деталь"]
["Батутное полотно (полуспорт) 3*3 м","перекупное","шт.",10480,null,null,null,null,"Деталь"]
["Батутное полотно (полуспорт) 3,8*3 м","перекупное","шт.",14030,null,null,null,null,"Деталь"]
["Батутное полотно (полуспорт) 3,8*3,4 м","перекупное","шт.",16600,null,null,null,null,"Деталь"]
["Батутное полотно (полуспорт) 4*2 м","перекупное","шт.",29700,null,null,null,null,"Деталь"]
["Батутное полотно (полуспорт) 4*3 м","перекупное","шт.",14940,null,null,null,null,"Деталь"]
["Батутное полотно (полуспорт) 4,3*2,3 м","перекупное","шт.",36000,null,null,null,null,"Деталь"]
["Батутное полотно (полуспорт) 4,5*3 м","перекупное","шт.",32450,null,null,null,null,"Деталь"]
["Батутное полотно (полуспорт) 4,5*3,35 м","перекупное","шт.",18630,null,null,null,null,"Деталь"]
["Батутное полотно (полуспорт) 4,5*3,5 м","перекупное","шт.",19710,null,null,null,null,"Деталь"]
["Батутное полотно (полуспорт) 5*3 м","перекупное","шт.",19360,null,null,null,null,"Деталь"]
["Батутное полотно (полуспорт) 5*3,5 м","перекупное","шт.",22330,null,null,null,null,"Деталь"]
["Батутное полотно (полуспорт) 5,5*3 м","перекупное","шт.",21620,null,null,null,null,"Деталь"]
["Батутное полотно (полуспорт) 5,5*3,5 м","перекупное","шт.",24950,null,null,null,null,"Деталь"]
["Батутное полотно (полуспорт) 6*2 м","перекупное","шт.",36300,null,null,null,null,"Деталь"]
["Батутное полотно (полуспорт) 6*3 м","перекупное","шт.",25550,null,null,null,null,"Деталь"]
["Батутное полотно (полуспорт) 7*2 м","перекупное","шт.",40200,null,null,null,null,"Деталь"]
["Батутное полотно (полуспорт) 9*2,5 м","перекупное","шт.",62400,null,null,null,null,"Деталь"]
["Батутное полотно (спорт) 5*3 м","перекупное","шт.",76900,null,null,null,null,"Деталь"]
["Батутное полотно (спорт) 5*5 м","перекупное","шт.",109000,null,null,null,null,"Деталь"]
["Батутное полотно 174 (ПВХ) 2*2 м","перекупное","шт.",12100,null,null,null,null,"Деталь"]
["Батутное полотно 174 (полуспорт) 2*2 м","перекупное","шт.",6640,null,null,null,null,"Деталь"]
["Батутное полотно 174 (полуспорт) 2,5*2 м","перекупное","шт.",7020,null,null,null,null,"Деталь"]
["Батутное полотно 174 (полуспорт) 2,5*2,5 м","перекупное","шт.",8920,null,null,null,null,"Деталь"]
["Батутное полотно 174 (полуспорт) 2,6*2 м","перекупное","шт.",7620,null,null,null,null,"Деталь"]
["Батутное полотно 174 (полуспорт) 2,6*2,5 м","перекупное","шт.",12380,null,null,null,null,"Деталь"]
["Батутное полотно 174 (полуспорт) 2,6*2,6 м","перекупное","шт.",9670,null,null,null,null,"Деталь"]
["Батутное полотно 174 (полуспорт) 2,7*2,7 м","перекупное","шт.",10700,null,null,null,null,"Деталь"]
["Батутное полотно 174 (полуспорт) 3*1,5 м","перекупное","шт.",4470,null,null,null,null,"Деталь"]
["Батутное полотно 174 (полуспорт) 3*2,5 м","перекупное","шт.",9640,null,null,null,null,"Деталь"]
["Батутное полотно 174 (полуспорт) 3*2,6 м","перекупное","шт.",9700,null,null,null,null,"Деталь"]
["Батутное полотно 174 (полуспорт) 3,4*2,8 м","перекупное","шт.",13480,null,null,null,null,"Деталь"]
["Батутное полотно 174 (полуспорт) 3,5*2 м","перекупное","шт.",8540,null,null,null,null,"Деталь"]
["Батутное полотно 174 (полуспорт) 4*2 м","перекупное","шт.",9500,null,null,null,null,"Деталь"]
["Батутное полотно 174 (полуспорт) 4*2,1 м","перекупное","шт.",12300,null,null,null,null,"Деталь"]
["Батутное полотно 174 (полуспорт) 4*2,4 м","перекупное","шт.",12295,null,null,null,null,"Деталь"]
["Батутное полотно 174 (полуспорт) 4*2,8 м","перекупное","шт.",22670,null,null,null,null,"Деталь"]
["Батутное полотно 174 (полуспорт) 4,5*2,6 м","перекупное","шт.",15500,null,null,null,null,"Деталь"]
["Батутное полотно 174 (полуспорт) 4,5*2,8 м","перекупное","шт.",22870,null,null,null,null,"Деталь"]
["Батутное полотно 174 (полуспорт) 5*2 м","перекупное","шт.",12960,null,null,null,null,"Деталь"]
["Батутное полотно 174 горизонтально-наклонное (полуспорт) 4,5*2,5 м","перекупное","шт.",38170,null,null,null,null,"Деталь"]
["Батутное полотно 174 горизонтально-наклонное (полуспорт) 4,5*2,6 м","перекупное","шт.",26990,null,null,null,null,"Деталь"]
["Батутное полотно 174 горизонтально-наклонное (полуспорт) 5*2,7 м","перекупное","шт.",21350,null,null,null,null,"Деталь"]
["Батутное полотно 174 горизонтально-наклонное СП (ПВХ) 2*2,1 м","в производстве","шт.",2610,null,null,null,null,"Деталь"]
["Батутное полотно 174 горизонтально-наклонное СП (ПВХ) 2*2,5 м","в производстве","шт.",null,null,null,null,null,"Деталь"]
["Батутное полотно 174 горизонтально-наклонное СП (ПВХ) 3*2,1 м","в производстве","шт.",3030,null,null,null,null,"Деталь"]
["Батутное полотно 174 горизонтально-наклонное СП (ПВХ) 3*2,3 м","в производстве","шт.",null,null,null,null,null,"Деталь"]
["Батутное полотно 174 горизонтально-наклонное СП (ПВХ) 5*2,7 м","в производстве","шт.",5100,null,null,null,null,"Деталь"]
["Батутное полотно 174 СП (ПВХ) 2*2 м","в производстве","шт.",2610,null,null,null,null,"Деталь"]
["Батутное полотно 174 СП (ПВХ) 2,4*2,1 м","в производстве","шт.",null,null,null,null,null,"Деталь"]
["Батутное полотно 174 СП (ПВХ) 2,4*2,4 м","в производстве","шт.",2720,null,null,null,null,"Деталь"]
["Батутное полотно 174 СП (ПВХ) 2,5*2,3 м","в производстве","шт.",null,null,null,null,null,"Деталь"]
["Батутное полотно 174 СП (ПВХ) 2,5*2,5 м","в производстве","шт.",3010,null,null,null,null,"Деталь"]
["Батутное полотно 174 СП (ПВХ) 2,6*2,6 м","в производстве","шт.",2860,null,null,null,null,"Деталь"]
["Батутное полотно 174 СП (ПВХ) 2,7*2,7 м","в производстве","шт.",3050,null,null,null,null,"Деталь"]
["Батутное полотно 174 СП (ПВХ) 2,8*2,65 м","в производстве","шт.",3180,null,null,null,null,"Деталь"]
["Батутное полотно 174 СП (ПВХ) 2,9*2 м","в производстве","шт.",null,null,null,null,null,"Деталь"]
["Батутное полотно 174 СП (ПВХ) 3*2,1 м","в производстве","шт.",null,null,null,null,null,"Деталь"]
["Батутное полотно 174 СП (ПВХ) 3*2,3 м","в производстве","шт.",3160,null,null,null,null,"Деталь"]
["Батутное полотно 174 СП (ПВХ) 3*2,5 м","в производстве","шт.",3270,null,null,null,null,"Деталь"]
["Батутное полотно 174 СП (ПВХ) 3*2,85 м","в производстве","шт.",3440,null,null,null,null,"Деталь"]
["Батутное полотно 174 СП (ПВХ) 3,2*2,7 м","в производстве","шт.",null,null,null,null,null,"Деталь"]
["Батутное полотно 174 СП (ПВХ) 3,3*2 м","в производстве","шт.",3170,null,null,null,null,"Деталь"]
["Батутное полотно 174 СП (ПВХ) 3,65*2,6 м","в производстве","шт.",null,null,null,null,null,"Деталь"]
["Батутное полотно 174 СП (ПВХ) 5*2,6 м","в производстве","шт.",5020,null,null,null,null,"Деталь"]
["Батутное полотно 174 СП (ПВХ) 7*2,5 м","в производстве","шт.",6540,null,null,null,null,"Деталь"]
["Батутное полотно 174 СП (ПВХ) 9*2 м","в производстве","шт.",7470]
["Батутное полотно 174 СП (ПВХ) 9*2,4 м","в производстве","шт.",null,null,null,null,null,"Деталь"]
["Батутное полотно 174 СП (полуспорт) 2*2 м","в производстве","шт."]
["Батутное полотно 174 СП (полуспорт) 2,83*2,83 м","в производстве","шт.",null,null,null,null,null,"Деталь"]
["Батутное полотно горизонтально-наклонное (полуспорт) 4,5*3 м","перекупное","шт.",21620,null,null,null,null,"Деталь"]
["Батутное полотно горизонтально-наклонное (полуспорт) 5,3*3 м","перекупное","шт.",20730,null,null,null,null,"Деталь"]
["Батутное полотно горизонтально-наклонное 174 СП (ПВХ) 4,5*2 м","в производстве","шт.",4690,null,null,null,null,"Деталь"]
["Батутное полотно горизонтально-наклонное 174 СП (ПВХ) 4,5*2,6 м","в производстве","шт.",5310,null,null,null,null,"Деталь"]
["Батутное полотно горизонтально-наклонное СП (ПВХ) 3,8*3 м","в производстве","шт.",null,null,null,null,null,"Деталь"]
["Батутное полотно горизонтально-наклонное СП (ПВХ) 4,5*3 м","в производстве","шт.",5750,null,null,null,null,"Деталь"]
["Батутное полотно горизонтально-наклонное СП (ПВХ) 5*1,8м","в производстве","шт.",4910,null,null,null,null,"Деталь"]
["Батутное полотно горизонтально-наклонное СП (ПВХ) 5*3 м","в производстве","шт.",6290,null,null,null,null,"Деталь"]
["Батутное полотно горизонтально-наклонное СП (ПВХ) 7,5*3 м","в производстве","шт.",8470,null,null,null,null,"Деталь"]
["Батутное полотно полуспорт 4,5*3 м","перекупное","шт.",27100,null,null,null,null,"Деталь"]
["Батутное полотно СП (ПВХ) 2*2 м","в производстве","шт.",2220,null,null,null,null,"Деталь"]
["Батутное полотно СП (ПВХ) 2,5*2,2 м","в производстве","шт.",2470,null,null,null,null,"Деталь"]
["Батутное полотно СП (ПВХ) 2,6*2,6 м","в производстве","шт.",2910,null,null,null,null,"Деталь"]
["Батутное полотно СП (ПВХ) 3*2 м","в производстве","шт.",2930,null,null,null,null,"Деталь"]
["Батутное полотно СП (ПВХ) 3*2,1 м","в производстве","шт.",3040,null,null,null,null,"Деталь"]
["Батутное полотно СП (ПВХ) 3*2,5 м","в производстве","шт.",3170,null,null,null,null,"Деталь"]
["Батутное полотно СП (ПВХ) 3*2,7 м","в производстве","шт.",3300,null,null,null,null,"Деталь"]
["Батутное полотно СП (ПВХ) 3*3 м","в производстве","шт.",3590,null,null,null,null,"Деталь"]
["Батутное полотно СП (ПВХ) 3,5*3 м","в производстве","шт.",null,null,null,null,null,"Деталь"]
["Батутное полотно СП (ПВХ) 3,8*3 м","в производстве","шт.",5020,null,null,null,null,"Деталь"]
["Батутное полотно СП (ПВХ) 4,2*2,25 м","в производстве","шт.",3930,null,null,null,null,"Деталь"]
["Батутное полотно СП (ПВХ) 4,5*3 м","в производстве","шт.",4850,null,null,null,null,"Деталь"]
["Батутное полотно СП (ПВХ) 4,75*2,5 м","в производстве","шт.",4560,null,null,null,null,"Деталь"]
["Батутное полотно СП (ПВХ) 5*3 м","в производстве","шт.",5280,null,null,null,null,"Деталь"]
["Батутное полотно СП (ПВХ) 5,5*2 м","в производстве","шт.",4910,null,null,null,null,"Деталь"]
["Батутное полотно СП (ПВХ) 6,5*2 м","в производстве","шт.",5650,null,null,null,null,"Деталь"]
["Батутное полотно СП (полуспорт) 3*3 м","в производстве","шт."]
["Батутное полотно СП (полуспорт) 3*3 м","в производстве","шт.",null,null,null,null,null,"Деталь"]
["Батутное полотно СП (полуспорт) 5*3 м"]
["Беседка страховочная","перекупное","шт.",2000,null,null,null,null,"Деталь"]
["Бесконтактный сенсор Orbbec Astra","перекупное","шт.",21000,0.3,2.0000000000000001E-4,null,null,"Деталь"]
["Болт анкерный М10х100 мм","в производстве","шт.",16.899999999999999,5.2499999999999998E-2,null,null,null,"Деталь"]
["Болт анкерный М12х100 мм","в производстве","шт.",23.4,4.3999999999999997E-2,null,null,null,"Деталь"]
["Болт анкерный М12х120 мм","в производстве","шт.",26,9.6000000000000002E-2,null,null,null,"Деталь"]
["Болт вн.шестигр. М10х40 мм","в производстве","шт.",10.14,0.1976,null,null,null,"Деталь"]
["Болт вн.шестигр. М8х40 мм","в производстве","шт.",7.67,0.1976,null,null,null,"Деталь"]
["Болт М10*25 мм","в производстве","шт.",4.9400000000000004,2.366E-2,null,null,null,"Деталь"]
["Болт М10*25мм","в производстве","шт.",4.9400000000000004,2.366E-2,null,null,null,"Деталь"]
["Болт М10*40мм","в производстве","шт.",6.5,3.109E-2,null,null,null,"Деталь"]
["Болт М10*60мм","в производстве","шт.",5.98,4.1239999999999999E-2,null,null,null,"Деталь"]
["Болт М10*70мм","в производстве","шт.",9.36,4.5429999999999998E-2,null,null,null,"Деталь"]
["Болт М10*80мм","в производстве","шт.",10.4,4.9799999999999997E-2,null,null,null,"Деталь"]
["Болт М10х110 мм","в производстве","шт.",13.9,6.5000000000000002E-2,null,null,null,"Деталь"]
["Болт М10х16 мм","в производстве","шт.",4.55,1.9230000000000001E-2,null,null,null,"Деталь"]
["Болт М10х20 мм","в производстве","шт.",4.42,2.12E-2,null,null,null,"Деталь"]
["Болт М10х40 мм","в производстве","шт.",6.5,3.109E-2,null,null,null,"Деталь"]
["Болт М10х60 мм","в производстве","шт.",5.98,4.1239999999999999E-2,null,null,null,"Деталь"]
["Болт М10х70 мм","в производстве","шт.",9.36,4.5429999999999998E-2,null,null,null,"Деталь"]
["Болт М10х80 мм","в производстве","шт.",10.4,4.9799999999999997E-2,null,null,null,"Деталь"]
["Болт М12*120мм","в производстве","шт.",23.4,0.11799999999999999,null,null,null,"Деталь"]
["Болт М12*40 мм","в производстве","шт.",9.1,4.3999999999999997E-2,null,null,null,"Деталь"]
["Болт М12х100 мм","в производстве","шт.",18.2,8.6929999999999993E-2]
["Болт М12х120 мм","в производстве","шт.",23.4,0.11799999999999999,null,null,null,"Деталь"]
["Болт М12х25 мм","в производстве","шт.",7.5,3.4799999999999998E-2,null,null,null,"Деталь"]
["Болт М12х40 мм","в производстве","шт.",9.1,4.3999999999999997E-2,null,null,null,"Деталь"]
["Болт М12х55 мм","в производстве","шт.",11.83,5.5629999999999999E-2,null,null,null,"Деталь"]
["Болт М12х60 мм","перекупное","шт.",11.7,5.8979999999999998E-2,null,null,null,"Деталь"]
["Болт М12х65 мм","перекупное","шт.",13.25,6.2799999999999995E-2,null,null,null,"Деталь"]
["Болт М12х70 мм","в производстве","шт.",13.95,6.6019999999999995E-2,null,null,null,"Деталь"]
["Болт М12х75 мм","перекупное","шт.",14.6,6.9919999999999996E-2,null,null,null,"Деталь"]
["Болт М12х80 мм","в производстве","шт.",14.3,null,null,null,null,"Деталь"]
["Болт М14х120 мм","в производстве","шт.",27.85,0.1406,null,null,null,"Деталь"]
["Болт М14х40 мм","в производстве","м.п.",15.31,6.3750000000000001E-2,null,null,null,"Деталь"]
["Болт М14х70 мм","в производстве","шт.",19.100000000000001,9.7180000000000002E-2,null,null,null,"Деталь"]
["Болт М16х80 мм","перекупное","шт.",29.3,0.14041999999999999,null,null,null,"Деталь"]
["Болт М6х20 мм","в производстве","м.п.",1.5,5.7999999999999996E-3,null,null,null,"Деталь"]
["Болт М6х40 мм","в производстве","м.п.",2.09,8.94E-3,null,null,null,"Деталь"]
["Болт М8х20 мм","перекупное","шт.",2.8,1.157E-2,null,null,null,"Деталь"]
["Болт М8х50 мм","в производстве","шт.",5.15,2.0969999999999999E-2,null,null,null,"Деталь"]
["Болт мебельный М10х30 мм","в производстве","шт.",3.9,2.8379999999999999E-2,null,null,null,"Деталь"]
["Болт мебельный М10х30мм","в производстве","шт.",3.9,2.8379999999999999E-2,null,null,null,"Деталь"]
["Болт мебельный М10х80 мм","в производстве","шт.",8.07,5.2170000000000001E-2,null,null,null,"Деталь"]
["Болт мебельный М10х80мм","в производстве","шт.",8.07,5.2170000000000001E-2,null,null,null,"Деталь"]
["Болт мебельный М8х30 мм","в производстве","шт.",2.73,1.7149999999999999E-2,null,null,null,"Деталь"]
["Болт мебельный М8х30мм","в производстве","шт.",2.73,1.7149999999999999E-2,null,null,null,"Деталь"]
["Болт мебельный М8х40 мм","в производстве","шт.",3.38,2.0820000000000002E-2,null,null,null,"Деталь"]
["Болт мебельный М8х40мм","в производстве","шт.",3.38,2.0820000000000002E-2,null,null,null,"Деталь"]
["Болт мебельный с полукруглой головкой и усом М8х35 DIN 607","в производстве","шт.",3.7,2.0820000000000002E-2,null,null,null,"Материал"]
["Болт с полукруглой головкой М8 х 40 мм","в производстве","шт.",3.38,2.0820000000000002E-2,null,null,null,"Деталь"]
["Бревно оцилиндрованное 200 мм","в производстве","м.п.",350]
["Брус 160х160х6000","в производстве","шт.",4610]
["Брус 45*45 мм","в производстве","м.п.",43,null,null,null,null,"Материал"]
["Брусок 50*50*3000 мм","в производстве","шт.",{"$f":"_xlfn.CEILING.MATH(230*1.05)","v":242},null,null,null,null,"Материал"]
["Вакуумная трубка 20х20 мм","в производстве","м.п.",1533,null,null,null,null,"Материал"]
["ВВППУ 100 1000х1000х30 мм","в производстве","м2",425.5,3,null,null,null,"Материал"]
["ВВПУ 30 мм","в производстве","м2",425.5,null,null,null,null,"Материал"]
["Веревка","в производстве","м.п.",40,null,null,null,null,"Материал"]
["Верёвка плетёная полиамидная с сердечником (крашеная) 16 мм","в производстве","м.п.",90,0.15384610000000001]
["Веревка с/с 10 мм Коломна","перекупное","м.п.",45.04,0.08,null,null,null,"Материал"]
["Веревка с/с 11 мм Коломна","перекупное","м.п.",35.04,0.08,null,null,null,"Материал"]
["ВИК 110","в производстве","м2",119.7,null,null,null,null,"Материал"]
["Винилискожа","в производстве","м2",115,null,null,null,null,"Материал"]
["Виноградная лоза 2,3 м (декор)","перекупное","м.п.",600,null,null,1,1,"Деталь"]
["Винт в потай внутр. шестигранник М8х20 мм","в производстве","шт.",10.88]
["Винт в потай внутр. шестигранник М8х25 мм","в производстве","шт.",11.45]
["Винт в потай внутр. шестигранник М8х30 мм","в производстве","шт.",12.97]
["Винт в потай внутр. шестигранник М8х35 мм","в производстве","шт.",15.25]
["Винт в потай внутр. шестигранник М8х40 мм","в производстве","шт.",17.760000000000002]
["Винт в потай внутр. шестигранник М8х60 мм","в производстве","шт.",30.17]
["Винт в потай внутр. шестигранник М8х80 мм","в производстве","шт.",42.24]
["Винт в потай внутр. шестигранник М8х90 мм","в производстве","шт.",50.45]
["Винт в потай М8х80","в производстве","шт.",12,null,null,null,null,"Деталь"]
["Воздушная подушка","перекупное","м2",8600,null,null,null,null,"Деталь"]
["Втулка металлическая d14+25 мм l=63 мм","в производстве","шт.",70,null,null,null,null,"Деталь"]
["Втулка металлическая d14+25мм l=63мм","в производстве","шт.",70,null,null,null,null,"Деталь"]
["Выезд специалиста","перекупное","шт.",20000,null,null,null,null,"Услуга"]
["Гайка колпачковая М10","перекупное","шт.",3.9,1.23E-3]
["Гайка колпачковая М8","в производстве","шт.",2.79,5.8300000000000001E-3,null,null,null,"Деталь"]
["Гайка М10","в производстве","шт.",1.59,null,null,null,null,"Деталь"]
["Гайка М12","в производстве","шт.",2.12,1.4880000000000001E-2,null,null,null,"Деталь"]
["Гайка М14","в производстве","шт.",4.5999999999999996,2.2519999999999998E-2,null,null,null,"Деталь"]
["Гайка М16","перекупное","шт.",6.26,2.8989999999999998E-2,null,null,null,"Деталь"]
["Гайка М20","перекупное","шт.",12.4,5.6309999999999999E-2,null,null,null,"Деталь"]
["Гайка М6","в производстве","м.п.",0.46,2.3E-3,null,null,null,"Деталь"]
["Гайка М8","в производстве","шт.",0.78,5.0000000000000001E-3,null,null,null,"Деталь"]
["Гайка с пластиковым кольцом М8","в производстве","шт.",10,null,null,null,null,"Деталь"]
["Грунтовка аэрозольная","перекупное","шт.",310,null,null,null,null,"Материал"]
["Декоративный колпачок с отв 3,5-6 мм для самореза","в производстве","шт.",3.45,1E-3,null,null,null,"Деталь"]
["Доска  50*100*6000 мм ","в производстве","шт.",{"$f":"_xlfn.CEILING.MATH(360*1.05)","v":378},null,null,null,null,"Материал"]
["Доска 28*140*6000 мм","в производстве","шт.",{"$f":"_xlfn.CEILING.MATH(558*1.05)","v":586},null,null,null,null,"Материал"]
["Доска 50*160*6000 мм","в производстве","м.п.",492]
["Доска 50х100х6000 мм","в производстве","м.п.",370]
["Заглушка пластиковая 20х20 мм","в производстве","шт.",3.2,2.3999999999999998E-3,null,null,null,"Деталь"]
["Заглушка пластиковая 25х25 мм","в производстве","шт.",12.5]
["Заглушка пластиковая 40х40 (40-40ПЧС)","перекупное","шт.",6.3,null,null,null,null,"Деталь"]
["Заглушка пластиковая 60х60","в производстве","шт.",20,null,null,null,null,"Деталь"]
["Заглушка пластиковая d 32 мм 32ПЧК","в производстве","шт.",6.32,5.7200000000000003E-3,null,null,null,"Деталь"]
["Заглушка пластиковая на болт М10","в производстве","шт.",7.5,null,null,null,null,"Деталь"]
["Зажим №10","перекупное","шт.",11.1,0.06,null,null,null,"Деталь"]
["Зажим №14","в производстве","шт.",29,1.0499999999999999E-3]
["Зажим М10","перекупное","шт.",11.1,0.06,null,null,null,"Деталь"]
["Заклепка 4,8*18 мм","перекупное","шт.",1.17,3.3E-3,null,null,null,"Деталь"]
["Замок 5 мм","в производстве","шт.",6,null,null,null,null,"Деталь"]
["Запятые","в производстве","шт.",21,1.975E-2,null,null,null,"Деталь"]
["Запятые для крепления сетки","в производстве","шт.",21,null,null,null,null,"Деталь"]
["Зацепы","перекупное","шт.",238.7,null,null,null,null,"Деталь"]
["Кабель VCOM HDMI - HDMI v2.0, 5м","перекупное","шт.",650,null,null,null,null,"Деталь"]
["Кабель-удлинитель USB 3.0(AM)/USB 3.0(AF), активный, 5m","перекупное","шт.",1200,null,null,null,null,"Деталь"]
["Канат крученый ПАТ d=10мм цветной","в производстве","м.п.",{"$f":"_xlfn.CEILING.MATH(28*1.05)","v":30},null,null,null,null,"Материал"]
["Канат полиамидный d 10 мм","в производстве","м.п.",33]
["Канат полиамидный d 13 мм","в производстве","м.п.",39]
["Канат полиамидный тросовой свивки (ПАТ) 5 мм","перекупное","м.п.",7,1.5873000000000002E-2,null,null,null,"Материал"]
["Канат полиамидный тросовой свивки (ПАТ) d 26 мм","перекупное","шт.",145,0.42020000000000002,null,null,null,"Материал"]
["Канат х/б d30 мм","в производстве","м.п.",232,null,null,null,null,"Материал"]
["Карабин №6","в производстве","шт.",29,null,null,null,null,"Деталь"]
["Карабин винтовой №10","в производстве","шт.",48,1.0499999999999999E-3]
["Карабин винтовой №6","в производстве","шт.",29,null,null,null,null,"Деталь"]
["Карабин винтовой оцинкованый 10 мм","перекупное","шт.",53.4,0.127,null,null,null,"Деталь"]
["Карабин на страховку","перекупное","шт.",400,null,null,null,null,"Деталь"]
["Карабин овальный","перекупное","шт.",400,null,null,null,null,"Деталь"]
["Карабин с байонетной муфтой","перекупное","шт.",900,null,null,null,null,"Деталь"]
["Каска","перекупное","шт.",2800,null,null,null,null,"Деталь"]
["Квадрат 10*10","в производстве","м.п.",37.5,0.78,null,null,null,"Материал"]
["Квадрат 12*12","в производстве","м.п.",52,1.1299999999999999,null,null,null,"Материал"]
["Квадрат 14*14","в производстве","м.п.",62,1.54,null,null,null,"Материал"]
["Квадрат 16*16","в производстве","м.п.",74,2.0099999999999998,null,null,null,"Материал"]
["Квадрат 18*18","в производстве","м.п.",null,2.54,null,null,null,"Материал"]
["Квадрат 20*20","в производстве","м.п.",null,3.14,null,null,null,"Материал"]
["Квадрат 22*22","в производстве","м.п.",null,null,null,null,null,"Материал"]
["Квадрат 25*25","в производстве","м.п.",null,null,null,null,null,"Материал"]
["Квадрат 6*6","в производстве","м.п.",29,0.28000000000000003,null,null,null,"Материал"]
["Квадрат 8*8","в производстве","м.п.",36,0.5,null,null,null,"Материал"]
["Клей для ПВХ (900-И)","в производстве","кг",267,null,null,null,null,"Материал"]
["Клей для поролона","в производстве","кг",220,null,null,null,null,"Материал"]
["Клей для поролона STARK 1 кг","в производстве","шт.",{"$f":"_xlfn.CEILING.MATH(175*1.05)","v":184},null,null,null,null,"Материал"]
["Клей полиуретановый двухкомпоненнтный (11 кг)","в производстве","кг.",312,null,null,null,null,"Деталь"]
["Ковролин на проризиненной основе","в производстве","м2",415,null,null,null,null,"Материал"]
["Колпачок SW46-1-G49","в производстве","шт.",150,null,null,null,null,"Деталь"]
["Кольца гимнастические","перекупное","шт.",310.5]
["Кольцо баскетбольное с амортизатором и сеткой","перекупное","шт.",3364,null,null,null,null,"Деталь"]
["Комплект табло+кнопки","перекупное","шт.",28000,null,null,null,null,"Деталь"]
["Коуш 10","в производстве","шт.",13.65,3.3000000000000002E-2]
["Коуш 14","в производстве","шт.",21,8.3000000000000004E-2,null,null,null,"Деталь"]
["Коуш 9/10","перекупное","шт.",9.1,0.04,null,null,null,"Деталь"]
["Краска аэрозольная","перекупное","шт.",310,null,null,null,null,"Материал"]
["Краска ВД (1л) с коллеровкой","в производстве","шт.",440,null,null,null,null,"Материал"]
["Краска ВД (5л)","в производстве","шт.",400,null,null,null,null,"Материал"]
["Краска ПФ (1л)","в производстве","шт.",300,null,null,null,null,"Материал"]
["Крепежный уголок 50*50*40 2 мм","в производстве","шт.",6.9,null,null,null,null,"Деталь"]
["Кронштейны на колонны","перекупное","компл.",330.6,null,null,null,null,"Деталь"]
["Круг 10 мм","в производстве","м.п.",25,0.62,null,null,null,"Материал"]
["Круг 12 мм","в производстве","м.п.",34,0.89,null,null,null,"Материал"]
["Круг 14 мм","в производстве","м.п.",49,1.21,null,null,null,"Материал"]
["Круг 16 мм","в производстве","м.п.",63,1.58,null,null,null,"Материал"]
["Круг 18 мм","в производстве","м.п.",null,2,null,null,null,"Материал"]
["Круг 20 мм","в производстве","м.п.",90,2.46,null,null,null,"Материал"]
["Круг 22 мм","в производстве","м.п.",null,null,null,null,null,"Материал"]
["Круг 25 мм","в производстве","м.п.",120,3.83,null,null,null,"Материал"]
["Круг 26 мм","в производстве","м.п.",null,null,null,null,null,"Материал"]
["Круг 30 мм","в производстве","м.п.",191,5.51,null,null,null,"Материал"]
["Круг 36 мм","в производстве","м.п.",273,7.94,null,null,null,"Материал"]
["Круг 6,5 мм","в производстве","м.п.",12,0.26,null,null,null,"Материал"]
["Круг 8 мм","в производстве","м.п.",17,0.39,null,null,null,"Материал"]
["Круг Ø 100 Сталь 09Г2С ","в производстве","м.п.",3320,61.622,null,null,null,"Материал"]
["Круг Ø 32 ГОСТ 2590-88 Сталь 20 ","в производстве","м.п.",281,5.5460000000000003,null,null,null,"Материал"]
["Лак акриловый (10 кг)","в производстве","шт.",1400,null,null,null,null,"Материал"]
["Лак акриловый (1кг)","в производстве","шт.",140,null,null,null,null,"Материал"]
["Лак акриловый (1л)","в производстве","шт.",400,null,null,null,null,"Материал"]
["Лак акриловый (5л)","в производстве","шт.",1900,null,null,null,null,"Материал"]
["Лак яхтный глянцевый VERES 1 кг","в производстве","шт.",{"$f":"_xlfn.CEILING.MATH(404.27*1.05)","v":425},null,null,null,null,"Материал"]
["Лента контакт 100 мм","в производстве","м.п.",77.7,null,null,null,null,"Материал"]
["Лента контакт 25 мм","в производстве","м.п.",null,null,null,null,null,"Материал"]
["Лента контакт 50 мм","в производстве","м.п.",21,null,null,null,null,"Материал"]
["Липучка 25 мм","в производстве","м.п.",null,null,null,null,null,"Материал"]
["Лист 0,5 х.к","в производстве","м2",null,null,null,null,null,"Материал"]
["Лист 0,7 х.к","в производстве","м2",null,null,null,null,null,"Материал"]
["Лист 1,0 х.к","в производстве","м2",null,7.85,null,null,null,"Материал"]
["Лист 1,2 х.к","в производстве","м2",null,null,null,null,null,"Материал"]
["Лист 1,5 х.к","в производстве","м2",512,11.77,null,null,null,"Материал"]
["Лист 1,8 г.к","в производстве","м2",null,null,null,null,null,"Материал"]
["Лист 10 мм","в производстве","м2",3875,79,null,null,null,"Материал"]
["Лист 10 мм (для вулкана ПРОМЛАЗЕР)","перекупное","м2",7000]
["Лист 2,0 г.к","в производстве","м2",448,15.7,null,null,null,"Материал"]
["Лист 2,0 мм","в производстве","м2",960,15.6,null,null,null,"Материал"]
["Лист 2,0 х.к","в производстве","м2",null,null,null,null,null,"Материал"]
["Лист 3,0 г.к","в производстве","м2",816,23.55,null,null,null,"Материал"]
["Лист 3,0 рифленый","в производстве","м2",null,null,null,null,null,"Материал"]
["Лист 4 мм (для вулкана ПРОМЛАЗЕР)","перекупное","м2",7000]
["Лист 4 мм г/к","в производстве","м2",1337.9,31.2,null,null,null,"Материал"]
["Лист 4,0 мм","в производстве","м2",1695,31.2,null,null,null,"Материал"]
["Лист 5,0 мм","в производстве","м2",1440,null,null,null,null,"Материал"]
["Лист 5,0 мм (1500*6000)г/к","в производстве","м2",12880,null,null,null,null,"Материал"]
["Лист 6 мм (для вулкана ПРОМЛАЗЕР)","перекупное","м2",10000]
["Лист ПНД 1250х2400х8 мм","в производстве","м2",1680,8,null,null,null,"Материал"]
["Лицензия Игра","перекупное","шт.",4200,null,null,null,null,"Деталь"]
["Лицензия ОС Win10 Pro Box","перекупное","шт.",13650,null,null,null,null,"Деталь"]
["Лицензия ПО для игр","перекупное","шт.",7000,null,null,null,null,"Деталь"]
["Люверс стальной №24 9мм","в производстве","шт.",1,null,null,null,null,"Деталь"]
["Люверс стальной №31 31*16 мм","в производстве","шт.",3,null,null,null,null,"Деталь"]
["Люверс стальной №31 31*16мм","в производстве","шт.",3,null,null,null,null,"Деталь"]
["Мини ПК Shuttle DH110","перекупное","шт.",16900,null,1.3500000000000001E-3,null,null,"Деталь"]
["Молния 5 мм","в производстве","м.п.",12,null,null,null,null,"Деталь"]
["Мяч баскетбольный","перекупное","шт.",1700,null,null,null,null,"Деталь"]
["Мяч волейбольный","перекупное","шт.",1800,null,null,null,null,"Деталь"]
["Нанесение стеклопластика 2-3 мм","в производстве","м2",5880,null,null,null,null,"Материал"]
["Нитки","в производстве","м.п.",1,null,null,null,null,"Материал"]
["Обвязка страховочная","перекупное","шт.",2000,null,null,null,null,"Деталь"]
["Оперативная память 8Gb DDR-III 1600MHz Kingston SO-DIMM (KVR16LS11/8)","перекупное","шт.",4850,null,null,null,null,"Деталь"]
["Орг. стекло Plexiglas XT 3050х2050x2мм, прозрачное","в производстве","м2",1100,2.36,2E-3,null,null,"Материал"]
["Основание 100х300х4 мм","в производстве","шт.",250,null,null,null,null,"Деталь"]
["Ось тип 6 - 12х70 40Х ГОСТ 9650-80","в производстве","шт.",60,null,null,null,null,"Деталь"]
["Ось тип 6 - 16х32 40Х ГОСТ 9650-80","в производстве","шт.",60,null,null,null,null,"Деталь"]
["Ось тип 6 - 12х40 ГОСТ 9650-80 ","в производстве","шт.",60,null,null,null,null,"Деталь"]
["Отвод ду 25","в производстве","шт.",83,0.2,null,null,null,"Деталь"]
["Отвод ду 32","в производстве","шт.",95]
["Оттяжка \"Express\" 17 см","перекупное","шт.",380,null,null,null,null,"Деталь"]
["Панель стеклопластик 10 мм","перекупное","м2",19040,null,null,null,null,"Материал"]
["Панель стеклопластик 10мм","перекупное","м2",19040,null,null,null,null,"Материал"]
["Панель стеклопластик 7 мм","перекупное","м2",12470,null,null,null,null,"Материал"]
["Панель стеклопластик 7мм","перекупное","м2",12470,null,null,null,null,"Материал"]
["ПВХ ткань","в производстве","м2",205,null,null,null,null,"Материал"]
["ПВХ ткань 2-слойная 600","в производстве","м2",164,null,null,null,null,"Материал"]
["ПВХ ткань 2-слойная 630","в производстве","м2",170,null,null,null,null,"Материал"]
["ПВХ ткань 2-слойная 630/одна сторона лак","в производстве","м2",174,null,null,null,null,"Материал"]
["ПВХ ткань 2-слойная 650","в производстве","м2",178,null,null,null,null,"Материал"]
["ПВХ ткань 2-слойная 650/одна сторона лак","в производстве","м2",178,null,null,null,null,"Материал"]
["ПВХ ткань 2-слойная 900","в производстве","м2",300,0.9,null,null,null,"Материал"]
["ПВХ ткань 2-слойная 900 POLYMAR® traffic","в производстве","м2",413.88888888888891,0.9,null,null,null,"Материал"]
["ПВХ ткань баннер","в производстве","м2",750,null,null,null,null,"Материал"]
["Пенолон ППЭ-Р 3020 (20ммх1000мм х 2000мм) маты","в производстве","м2",460,null,null,null,null,"Материал"]
["Перекладина","перекупное","шт.",1200,null,null,null,null,"Деталь"]
["Печать на вспененном пластике 3 мм","в производстве","м2",3500,null,null,null,null,"Материал"]
["Печать на вспененном пластике 5 мм","в производстве","м2",4500,null,null,null,null,"Материал"]
["Пластик (декор)","перекупное","м2",null,null,null,null,null,"Материал"]
["Пластик вспененный (декор)","перекупное","м2",null,null,null,null,null,"Материал"]
["Пластиковый наконечник 100402","в производстве","шт.",220,null,null,null,null,"Деталь"]
["Пластиковый наконечник для каната d 16 мм","в производстве","шт.",206]
["Пластина 100 х 100 х 3 мм (4 отв 4,5 мм)","перекупное","шт.",90,null,null,null,null,"Деталь"]
["Пластина 100 х 40 х 4 (2 отв. 9 мм)","перекупное","шт.",57,null,null,null,null,"Деталь"]
["Пластина 150*150*2 мм (8 отв. 5,5 мм)","перекупное","шт.",200,null,null,null,null,"Деталь"]
["Пластина 150*150*4 мм (4 отв. 10,5 мм)","перекупное","шт.",300,null,null,null,null,"Деталь"]
["Пластина 60 х 30 х 4 (1 отв. 9 мм)","перекупное","шт.",23,null,null,null,null,"Деталь"]
["Пластина резиновая I - 4 мм ","в производстве","м2",809.1,2.5205000000000002,null,null,null,"Материал"]
["Платик 400х50х4 мм","перекупное","шт.",150,null,null,null,null,"Деталь"]
["Платик 400х50х5 мм","перекупное","шт.",180,null,null,null,null,"Деталь"]
["Пленка самоклеящаяся (стрелки)","в производстве","м2",1200,null,null,null,null,"Материал"]
["Плита из резиновой крошки, 1000х1000х7 мм СФ","в производстве","шт.",730,null,null,null,null,"Деталь"]
["П-образный крепеж","в производстве","шт.",70.67,null,null,null,null,"Деталь"]
["Подшипник UCPE20927","перекупное","шт.",2200]
["Подшипниковый узел UCP-208","в производстве","шт.",856,null,null,null,null,"Деталь"]
["Покраска (грунт ГФ-021)","в производстве","м2",200,null,null,null,null,"Услуга"]
["Покраска (эмаль НЦ-115)","в производстве","м2",300,null,null,null,null,"Услуга"]
["Покраска (эмаль ПФ-115)","в производстве","м2",450,null,null,null,null,"Услуга"]
["Покраска эмаль 3в1","в производстве","м2",350,null,null,null,null,"Услуга"]
["Покрытие полимочевиной","перекупное","м2",2000,null,null,null,null,"Материал"]
["Поликарбонат Novattro Guard 3050х2050х10 мм прозрачный","в производстве","м2",4200]
["Полоса 20*4","в производстве","м.п.",null,null,null,null,null,"Материал"]
["Полоса 20*5","в производстве","м.п.",null,null,null,null,null,"Материал"]
["Полоса 25*4","в производстве","м.п.",34,0.79,null,null,null,"Материал"]
["Полоса 40*4","в производстве","м.п.",63,1.26,null,null,null,"Материал"]
["Полоса 40*5","в производстве","м.п.",null,null,null,null,null,"Материал"]
["Полоса 40х4 мм","в производстве","м.п.",63,1.26,null,null,null,"Материал"]
["Полоса 50*5","в производстве","м.п.",87,1.95,null,null,null,"Материал"]
["Полоса обжимная","в производстве","м.п.",60,null,null,null,null,"Материал"]
["Полотно l 8 м","в производстве","м.п.",3700]
["Полотно батутное ширина 2,5 м (7915)","в производстве","м2",{"$f":"$T$15","v":0},0.29499999999999998,null,null,null,"Материал"]
["Полотно батутное ширина 2,5 м (7915) обрезь","в производстве","м2",{"$f":"$T$15","v":0},0.29499999999999998,null,null,null,"Материал"]
["Полотно батутное ширина 2,5 м (7916)","в производстве","м2",{"$f":"$T$21","v":0},0.26500000000000001,null,null,null,"Материал"]
["Полотно батутное ширина 2,5 м (7916) обрезь","в производстве","м2",{"$f":"$T$21","v":0},0.26500000000000001,null,null,null,"Материал"]
["Полотно батутное ширина 2,8 м (Коммерческое)","в производстве","м2",184.51,null,null,null,null,"Материал"]
["Полотно батутное ширина 2,8 м (Коммерческое) обрезь","в производстве","м2",184.51,null,null,null,null,"Материал"]
["Полотно батутное ширина 3,02 м (7908)","в производстве","м2",{"$f":"$T$27","v":0},0.45,null,null,null,"Материал"]
["Полотно батутное ширина 3,02 м (7908) обрезь","в производстве","м2",{"$f":"$T$27","v":0},0.45,null,null,null,"Материал"]
["Полукольцо металл 40 мм","в производстве","шт.",3.15,null,null,null,null,"Материал"]
["Полукольцо металл 40мм","в производстве","шт.",3.15,null,null,null,null,"Материал"]
["Полукольцо металл 50 мм","в производстве","шт.",12.4,null,null,null,null,"Материал"]
["Полусфера (в комплекте с насосом)","перекупное","шт.",5800,null,null,null,null,"Деталь"]
["Полусфера гимнастическая Larsen диаметр 58 см","перекупное","шт.",5800,null,null,null,null,"Деталь"]
["Порилекс НПЭ Л 30*1000*2 натура 2","в производстве","м2",228,2.0830000000000002,null,null,null,"Деталь"]
["Поролон 100 мм","в производстве","м2",600,null,null,null,null,"Материал"]
["Поролон 100мм ST2236","в производстве","м2",{"$f":"_xlfn.CEILING.MATH(1254/2*1.05)","v":659},null,null,null,null,"Материал"]
["Поролон 10мм ST2236","в производстве","м2",{"$f":"_xlfn.CEILING.MATH(125.4/2*1.05)","v":66},null,null,null,null,"Материал"]
["Поролон 120мм ST2236","в производстве","м2",{"$f":"_xlfn.CEILING.MATH(1504.8/2*1.05)","v":791},null,null,null,null,"Материал"]
["Поролон 140мм ST2236","в производстве","м2",{"$f":"_xlfn.CEILING.MATH(1755.6/2*1.05)","v":922},null,null,null,null,"Материал"]
["Поролон 150мм ST2236","в производстве","м2",{"$f":"_xlfn.CEILING.MATH(1881/2*1.05)","v":988},null,null,null,null,"Материал"]
["Поролон 20 мм","в производстве","м2",122.5,0.44,null,null,null,"Материал"]
["Поролон 20мм ST2236","в производстве","м2",{"$f":"_xlfn.CEILING.MATH(250.8/2*1.05)","v":132},null,null,null,null,"Материал"]
["Поролон 30мм ST2236","в производстве","м2",{"$f":"_xlfn.CEILING.MATH(376.2/2*1.05)","v":198},null,null,null,null,"Материал"]
["Поролон 40 мм","в производстве","м2",244.9,0.88,null,null,null,"Материал"]
["Поролон 40мм ST2236","в производстве","м2",{"$f":"_xlfn.CEILING.MATH(501.6/2*1.05)","v":264},null,null,null,null,"Материал"]
["Поролон 50 мм","в производстве","м2",300,1.1000000000000001,null,null,null,"Материал"]
["Поролон 50мм ST2236","в производстве","м2",{"$f":"_xlfn.CEILING.MATH(627/2*1.05)","v":330},null,null,null,null,"Материал"]
["Поролон 60мм ST2236","в производстве","м2",{"$f":"_xlfn.CEILING.MATH(752.4/2*1.05)","v":396},null,null,null,null,"Материал"]
["Поролон 80мм ST2236","в производстве","м2",{"$f":"_xlfn.CEILING.MATH(1003.2/2*1.05)","v":527},null,null,null,null,"Материал"]
["Поролоновые кубики (м3)","перекупное","шт.",7100,null,null,null,null,"Материал"]
["Поролоновые кубики 200*200*200","перекупное","шт.",54.55,0.14399999999999999,null,null,null,"Материал"]
["Поролоновые кубики 200*200*200 (м3)","перекупное","шт.",6820,18,null,null,null,"Материал"]
["Поролоновые монетки D=300 мм, H=100 мм","перекупное","шт.",470,null,null,null,null,"Деталь"]
["Поролоновые монетки D=300 мм, H=100мм","перекупное","шт.",470,null,null,null,null,"Деталь"]
["Порошковая покраска","в производстве","шт.",1000,null,null,null,null,"Услуга"]
["Портативный проектор Panasonic PT-VX420","перекупное","шт.",80000,3.3,0.01,null,null,"Деталь"]
["Препятствие грибки","в производстве","шт.",18000,null,null,null,null,"Деталь"]
["Противоскользящая лента 25х6000 мм цвет чёрный","в производстве","шт.",535,null,null,null,null,"Материал"]
["Профильная труба 10*10*1,2","в производстве","м.п.",null,null,null,null,null,"Материал"]
["Профильная труба 100*100*3,0","в производстве","м.п.",null,null,null,null,null,"Материал"]
["Профильная труба 100*60*4,0","в производстве","м.п.",462,9.48,null,null,null,"Материал"]
["Профильная труба 15*15*1,5","в производстве","м.п.",33.5,0.64,null,null,null,"Материал"]
["Профильная труба 15*15*1,5 *","в производстве","м.п.",77.400000000000006,0.64,null,null,null,"Материал"]
["Профильная труба 20*20*1,2","в производстве","м.п.",null,null,null,null,null,"Материал"]
["Профильная труба 20*20*1,5","в производстве","м.п.",41,0.87,null,null,null,"Материал"]
["Профильная труба 20*20*2,0","в производстве","м.п.",57.05,1.1200000000000001,null,null,null,"Материал"]
["Профильная труба 25*25*1,5","в производстве","м.п.",54,1.1000000000000001,null,null,null,"Материал"]
["Профильная труба 25*25*2,0","в производстве","м.п.",72.75,1.44,null,null,null,"Материал"]
["Профильная труба 30*20*1,5","в производстве","м.п.",47,1.1000000000000001,null,null,null,"Материал"]
["Профильная труба 30*20*2,0","в производстве","м.п.",54,1.44,null,null,null,"Материал"]
["Профильная труба 30*30*1,5","в производстве","м.п.",60,1.33,null,null,null,"Материал"]
["Профильная труба 30*30*2,0","в производстве","м.п.",78,1.75,null,null,null,"Материал"]
["Профильная труба 40*20*1,5","в производстве","м.п.",60,1.34,{"$f":"0.04*0.02*1","v":8.0000000000000004E-4},null,null,"Материал"]
["Профильная труба 40*20*2,0","в производстве","м.п.",90,1.75,{"$f":"0.04*0.02*1","v":8.0000000000000004E-4},null,null,"Материал"]
["Профильная труба 40*25*2","в производстве","м.п.",105.08,1.9,null,null,null,"Материал"]
["Профильная труба 40*25*2,0","в производстве","м.п.",105.08,1.9,null,null,null,"Материал"]
["Профильная труба 40*40*1,5","в производстве","м.п.",84,1.8,null,null,null,"Материал"]
["Профильная труба 40*40*2,0","в производстве","м.п.",106.7,2.39,null,null,null,"Материал"]
["Профильная труба 40*40*3,0","в производстве","м.п.",163,3.49,null,null,null,"Материал"]
["Профильная труба 40*40*4,0","в производстве","м.п.",207,4.2,null,null,null,"Материал"]
["Профильная труба 50*25*1,5","в производстве","м.п.",82,1.68,null,null,null,"Материал"]
["Профильная труба 50*25*2,0","в производстве","м.п.",93,2.2200000000000002,null,null,null,"Материал"]
["Профильная труба 50*50*2,0","в производстве","м.п.",null,null,null,null,null,"Материал"]
["Профильная труба 50*50*3,0","в производстве","м.п.",215,4.4000000000000004,null,null,null,"Материал"]
["Профильная труба 60*40*2,0","в производстве","м.п.",null,null,null,null,null,"Материал"]
["Профильная труба 60*40*3,0","в производстве","м.п.",167.3,4.4400000000000004,null,null,null,"Материал"]
["Профильная труба 60*60*2,0","в производстве","м.п.",173,null,null,null,null,"Материал"]
["Профильная труба 60*60*3,0","в производстве","м.п.",248.7,5.38,{"$f":"0.06*0.06","v":3.5999999999999999E-3},null,null,"Материал"]
["Профильная труба 80*40*2,0","в производстве","м.п.",155,3.65,null,null,null,"Материал"]
["Профильная труба 80*80*2,0","в производстве","м.п.",null,null,null,null,null,"Материал"]
["Профильная труба 80*80*5,0","в производстве","м.п.",509,11.27,null,null,null,"Материал"]
["Процессор Intel Core i5 - 6400 BOX","перекупное","шт.",12470,null,null,null,null,"Деталь"]
["Пружина 174х27,5 мм","перекупное","шт.",68.099999999999994,null,null,null,null,"Деталь"]
["Пружина 256х29 мм","перекупное","шт.",124,null,null,null,null,"Деталь"]
["Пряжка 40 мм","в производстве","шт.",2,null,null,null,null,"Деталь"]
["Пряжка пружинная 25 мм (25/ППБ-0,25)","в производстве","шт.",63,null,null,null,null,"Деталь"]
["Пятка колонны 300*300*5 мм","перекупное","компл.",833,null,null,null,null,"Деталь"]
["Пятка колонны 400*400*4 мм","в производстве","шт.",413.7,null,null,null,null,"Деталь"]
["Пятка стойки 140*40 мм, 2 отв 10,5 мм","в производстве","шт.",44.6,0.17199999999999999,null,null,null,"Деталь"]
["Работа художника","в производстве","м2",1500,null,null,null,null,"Материал"]
["Рукав мягкий (2,5 м)","перекупное","шт.",247.5,null,null,null,null,"Деталь"]
["Рукав мягкий D150 мм (2 м)","в производстве","шт.",2000,null,null,null,null,"Деталь"]
["Ручка полимерная рифленая РЧ32М2ЗК","перекупное","шт.",54,null,null,null,null,"Деталь"]
["Рым болт М10","перекупное","шт.",28.6,0.112,null,null,null,"Деталь"]
["Рым болт М20","перекупное","шт.",105.45,0.47199999999999998,null,null,null,"Деталь"]
["Рым гайка М10","перекупное","шт.",28.6,9.9699999999999997E-2,null,null,null,"Деталь"]
["Рым гайка М12","в производстве","шт.",41.6,0.16120000000000001,null,null,null,"Деталь"]
["Рым гайка М20","перекупное","шт.",150.80000000000001,0.372,null,null,null,"Деталь"]
["Рым-гайка М12","в производстве","шт.",41.6,0.16120000000000001,null,null,null,"Деталь"]
["Саморез 3,2*16 мм","в производстве","шт.",0.2,1.0499999999999999E-3,null,null,null,"Деталь"]
["Саморез 3,5*51 мм черный","в производстве","шт.",0.35,2.5300000000000001E-3,null,null,null,"Деталь"]
["Саморез 4*16 мм","в производстве","шт.",0.2,1.0499999999999999E-3,null,null,null,"Деталь"]
["Саморез 4*25 мм желтый/цинк","в производстве","шт.",0.26,1.5499999999999999E-3,null,null,null,"Деталь"]
["Саморез 4*40 мм острый наконечник","в производстве","шт.",0.39,2.0999999999999999E-3,null,null,null,"Деталь"]
["Саморез 4,2х45 мм","в производстве","шт.",0.36,2.3400000000000001E-3,null,null,null,"Деталь"]
["Саморез 4,5*50 мм желтый","в производстве","шт.",0.52,3.4199999999999999E-3,null,null,null,"Деталь"]
["Саморез 4х16 мм","в производстве","шт.",0.2,1.0499999999999999E-3,null,null,null,"Деталь"]
["Саморез 4х19 мм","в производстве","шт.",0.28999999999999998,1.0499999999999999E-3,null,null,null,"Деталь"]
["Саморез 4х25 мм со сверлом","в производстве","шт.",0.51,1.0499999999999999E-3,null,null,null,"Деталь"]
["Саморез 5*25 цинк","в производстве","шт.",0.45,2.4299999999999999E-3,null,null,null,"Деталь"]
["Саморез 5*40 цинк","в производстве","шт.",0.67,3.7299999999999998E-3,null,null,null,"Деталь"]
["Саморез 5*50 желтый/цинк","в производстве","шт.",0.69,null,null,null,null,"Материал"]
["Саморез 5х40 мм","в производстве","шт.",0.62,3.7299999999999998E-3,null,null,null,"Деталь"]
["Саморез с пресс шайбой 4,2*19 мм острый","в производстве","шт.",0.33,1.8400000000000001E-3,null,null,null,"Деталь"]
["Саморез с пресс шайбой 4,2*25 мм острый","в производстве","шт.",0.42,2.2300000000000002E-3,null,null,null,"Деталь"]
["Саморез со сверлом 4,8*20 без шайбы DIN 7504К","перекупное","шт.",1.31,3.0000000000000001E-3,null,null,null,"Деталь"]
["Связь 160х30х4 мм","в производстве","шт.",56.5,0.15,null,null,null,"Материал"]
["Сегмент горки 45 градусов","перекупное","шт.",8000,null,null,null,null,"Деталь"]
["Сетка волейбольная","перекупное","шт.",8000,null,null,null,null,"Деталь"]
["Сетка заградительная 40х40 мм h=3м","перекупное","м.п.",330,null,null,null,null,"Материал"]
["Сетка заградительная 40х40 мм h=4м","перекупное","м.п.",440,null,null,null,null,"Материал"]
["Сеть прямая ячейка 150*150 мм","перекупное","м2",2500,null,null,null,null,"Материал"]
["Скоба 1,0т прямая с гайкой и шплинтом G2150","перекупное","шт.",107,0.15,null,null,null,"Деталь"]
["Скоба 2,0т омегобразная с гайкой и шплинтом G2130","в производстве","шт.",65,0.34,null,null,null,"Деталь"]
["Скоба U-образная 33- 42 с метрич.резьбой М8","в производстве","шт.",47.31,null,null,null,null,"Деталь"]
["Скоба обивочная 8/12 (8/14)","в производстве","шт.",0.03,null,null,null,null,"Материал"]
["Скоба обивочная 8/12(8/14)","в производстве","шт.",0.03,null,null,null,null,"Деталь"]
["Скоба обивочная 80/04","в производстве","шт.",0.02,null,null,null,null,"Деталь"]
["Скоба обивочная 80/06 (150/15)","в производстве","шт.",0.02,null,null,null,null,"Деталь"]
["Скоба обивочная 80/10","в производстве","шт.",2.5999999999999999E-2,null,null,null,null,"Деталь"]
["Скоба такелажная прямой тип оцин. 5","в производстве","шт.",10.31,1.4319999999999999E-2,null,null,null,"Деталь"]
["Слэклайн 15 м","перекупное","шт.",5000,null,null,null,null,"Деталь"]
["Собачка 5 мм","в производстве","шт.",6,null,null,null,null,"Деталь"]
["Соединитель Я16КС","в производстве","шт.",50,null,null,null,null,"Деталь"]
["Составной колпачок под болт/гайку КЧ36КК","в производстве","шт.",8.5,8.5000000000000006E-3,null,null,null,"Деталь"]
["Составной колпачок под болт/гайку КЧ52КК","в производстве","шт.",12.5,1.6500000000000001E-2,null,null,null,"Деталь"]
["Стенка 160х60х4 мм","в производстве","шт.",113,0.3,null,null,null,"Материал"]
["Страховочное устройство \"Восьмерка\"","перекупное","шт.",870,null,null,null,null,"Деталь"]
["Страховочное устройство \"Гри Гри\"","перекупное","шт.",6200,null,null,null,null,"Деталь"]
["Страховочное устройство TRUBLUE","перекупное","шт.",165000,null,null,null,null,"Деталь"]
["Страховочное устройство TRUBLUE XL","перекупное","шт.",190000,null,null,null,null,"Деталь"]
["Строп 25 мм","в производстве","м.п.",5.5,null,null,null,null,"Материал"]
["Строп 40 мм","в производстве","м.п.",7,null,null,null,null,"Материал"]
["Строп 50 мм","в производстве","м.п.",11]
["Стропа 40 мм","в производстве","м.п.",7,null,null,null,null,"Материал"]
["Стропа 50 мм","в производстве","м.п.",11,null,null,null,null,"Материал"]
["Талрэп М12","перекупное","шт.",78,0.41399999999999998,null,null,null,"Деталь"]
["Твердотельный накопитель 120Gb SSD Western Digital Green","перекупное","шт.",3560,null,null,null,null,"Деталь"]
["Термоусадочная трубка 20/10 мм","в производстве","м.п.",36.26]
["Термоусадочная трубка 39/13 мм","в производстве","м.п.",300,null,null,null,null,"Материал"]
["Трос оцинкованый d 10 мм","перекупное","м.п.",64,null,null,null,null,"Материал"]
["Трос оцинкованый d 6 мм","в производстве","м.п.",30]
["Трос стальной в ПВХ 5/6 мм","в производстве","м.п.",22,null,null,null,null,"Материал"]
["Труба 10*1,0","в производстве","м.п.",null,null,null,null,null,"Материал"]
["Труба 12*1,0","в производстве","м.п.",null,null,null,null,null,"Материал"]
["Труба 14*1,0","в производстве","м.п.",null,null,null,null,null,"Материал"]
["Труба 15*2,8","в производстве","м.п.",77.400000000000006,null,null,null,null,"Материал"]
["Труба 18*1,0","в производстве","м.п.",null,null,null,null,null,"Материал"]
["Труба 20*1,0","в производстве","м.п.",null,null,null,null,null,"Материал"]
["Труба 20*2,5","в производстве","м.п.",65,1.08,null,null,null,"Материал"]
["Труба 20*2,8","в производстве","м.п.",82.9,null,null,null,null,"Материал"]
["Труба 219х6","в производстве","м.п.",1615,31.515000000000001,null,null,null,"Материал"]
["Труба 25*2,8","в производстве","м.п.",100,1.53,null,null,null,"Материал"]
["Труба 25*3,2","в производстве","м.п.",97.5,2.4900000000000002,null,null,null,"Материал"]
["Труба 32*1,5","в производстве","м.п.",57.5,1.1323000000000001,null,null,null,"Материал"]
["Труба 32*1,5 мм","в производстве","м.п.",70,1.24,null,null,null,"Материал"]
["Труба 32*1,5 мм *","в производстве","м.п.",145.69999999999999,1.24,null,null,null,"Материал"]
["Труба 32*3,2","в производстве","м.п.",121.5,2.76,null,null,null,"Материал"]
["Труба 32*4,0","в производстве","м.п.",153,2.76,null,null,null,"Материал"]
["Труба 40*3,0","в производстве","м.п.",162,null,null,null,null,"Материал"]
["Труба 40*3,5","в производстве","м.п.",158,3.84,null,null,null,"Материал"]
["Труба 40*4,0","в производстве","м.п.",176,3.55,null,null,null,"Материал"]
["Труба 50*3,0","в производстве","м.п.",null,null,null,null,null,"Материал"]
["Труба 57*3,0","в производстве","м.п.",182,4.4390000000000001]
["Труба 57*3,5","в производстве","м.п.",190,4.62,null,null,null,"Материал"]
["Труба 76*3,5","в производстве","м.п.",265,6.26,null,null,null,"Материал"]
["Труба 76*6,0","в производстве","м.п.",590,10.36,null,null,null,"Материал"]
["Труба 89*3,5","в производстве","м.п.",300,7.38,null,null,null,"Материал"]
["Труба Ду 20х2,8","в производстве","м.п.",80.099999999999994,1.66,null,null,null,"Материал"]
["Труба Ду 25*3,2","в производстве","м.п.",112.8,2.4,null,null,null,"Материал"]
["Труба Ду 32*2,8","в производстве","м.п.",132,2.74,null,null,null,"Материал"]
["Труба Ду 32*3,2","в производстве","м.п.",145.69999999999999,3.1,null,null,null,"Материал"]
["Труба Ду 40*3,5","в производстве","м.п.",171,3.85,null,null,null,"Материал"]
["Труба Ду 40*4,0","в производстве","м.п.",209,4.3380000000000001,null,null,null,"Материал"]
["Труба Ду 50*3,5","в производстве","м.п.",217,4.88,null,null,null,"Материал"]
["Труба Ду 50*4,5","в производстве","м.п.",301,6.1559999999999997,null,null,null,"Материал"]
["Труба Ду 80*4,5","в производстве","м.п.",456,9.3170000000000002,null,null,null,"Материал"]
["Труба ДУ 80х3,5","в производстве","шт.",346,7.3360000000000003,null,null,null,"Материал"]
["Труба пластиковая d25х40 мм","в производстве","м.п.",330,null,null,null,null,"Материал"]
["Труба пластиковая d25х40мм","в производстве","м.п.",330,null,null,null,null,"Материал"]
["Труба прямая горки 1350 мм","перекупное","шт.",8300,null,null,null,null,"Деталь"]
["Трубка ПВХ (кембрик) Ø 25 мм","в производстве","м.п.",26.5,8.6099999999999996E-2,null,null,null,"Материал"]
["Трубка ПВХ (кембрик) Ø 40 мм","в производстве","м.п.",48,8.6099999999999996E-2,null,null,null,"Материал"]
["Трубка Тилит Супер 110/13-2 (1/20м)","в производстве","м.п.",168.5,null,null,null,null,"Материал"]
["Трубка Тилит Супер 140/13-2 (1/20м)","в производстве","м.п.",210,null,null,null,null,"Материал"]
["Углок крепежный 40*40*40 мм","в производстве","шт.",19]
["Уголок 100х63х8 мм","в производстве","м.п.",495,9.6720000000000006,null,null,null,"Материал"]
["Уголок 25*3","в производстве","м.п.",59,1.17,null,null,null,"Материал"]
["Уголок 25*4","в производстве","м.п.",67.5,1.44,null,null,null,"Материал"]
["Уголок 32*4","в производстве","м.п.",73.900000000000006,1.88,null,null,null,"Материал"]
["Уголок 35*4","в производстве","м.п.",88.5,2.06,null,null,null,"Материал"]
["Уголок 40*4","в производстве","м.п.",95,2.37,null,null,null,"Материал"]
["Уголок 45*4","в производстве","м.п.",109,2.7,null,null,null,"Материал"]
["Уголок 50*4","в производстве","м.п.",120,3,null,null,null,"Материал"]
["Уголок 50*5","в производстве","м.п.",152,3.73,null,null,null,"Материал"]
["Уголок 50х50х4 мм","в производстве","м.п.",153,2.9950000000000001,null,null,null,"Материал"]
["Уголок 63*5","в производстве","м.п.",186,4.75,null,null,null,"Материал"]
["Уголок крепежный 50*50*50 2 мм","перекупное","шт.",17]
["Уголок крепежный усиленный 50х50х35х2,0 мм","в производстве","шт.",6.3,null,null,null,null,"Деталь"]
["Уголок крепления опоры ограждения","в производстве","шт.",124.5,0.28000000000000003,null,null,null,"Деталь"]
["Усовая гайка М10","в производстве","шт.",5.46,7.6499999999999997E-3,null,null,null,"Деталь"]
["Усовая гайка М8","в производстве","шт.",2.34,4.5999999999999999E-3,null,null,null,"Деталь"]
["Ухо 40*40*4 мм (отв. 10,5 мм)","перекупное","шт.",21.43,4.9722000000000002E-2,null,null,null,"Деталь"]
["Ухо 40*40*4 мм (отв. 12,5 мм)","перекупное","шт.",21.88,4.9624000000000001E-2,null,null,null,"Деталь"]
["Ухо 60*40*4 мм (2 отв. 6 мм)","перекупное","шт.",27,4.9624000000000001E-2]
["Ухо 60*40*4 мм (2 отв. 6,5 мм)","перекупное","шт.",21.88,{"$f":"0.049624*1.5","v":7.4436000000000002E-2},null,null,null,"Деталь"]
["Ушко 100х50х5 мм","в производстве","шт.",50,null,null,null,null,"Деталь"]
["Фанера 1500*1500*12 мм","в производстве","шт.",932,18.100000000000001,null,null,null,"Материал"]
["Фанера 1500*1500*15 мм","в производстве","шт.",1100,22.7,null,null,null,"Материал"]
["Фанера 1525*1525*12 мм","в производстве","шт.",1200,16.739999999999998,0.03,null,null,"Материал"]
["Фанера 1525*1525*15 мм","в производстве","шт.",1377,20.93,0.03,null,null,"Материал"]
["Фанера 1525*1525*15 мм сорт 2/4","в производстве","шт.",1220,22.7,null,null,null,"Материал"]
["Фанера 1525*1525*15 мм сорт 4/4","в производстве","шт.",870,22.7,null,null,null,"Материал"]
["Фанера 1525*1525*18 мм","в производстве","шт.",1220,27.2,null,null,null,"Материал"]
["Фанера 1525*1525*21 мм","в производстве","шт.",1743,29.3,0.05]
["Фанера 1525*1525*6 мм","в производстве","шт.",695,8.3699999999999992,0.01,null,null,"Материал"]
["Фанера 1525*1525*6 мм сорт 2/4","в производстве","шт.",600,9.1,null,null,null,"Материал"]
["Фанера 1525*1525*6мм","в производстве","шт.",600,9.1,null,null,null,"Материал"]
["Фанера 2440*1220*12 мм","в производстве","шт.",1894,21.43,0.04,null,null,"Материал"]
["Фанера 2440*1220*15 мм","в производстве","шт.",2400,29.76,0.04,null,null,"Материал"]
["Фанера 2440*1220*18 мм","в производстве","шт.",2968,32.15,0.05]
["Фанера 2440*1220*21 мм","в производстве","шт.",2904,37.51,0.06,null,null,"Материал"]
["Фанера 2440*1220*6 мм","в производстве","шт.",1238,10.199999999999999,0.02]
["Фанера ламинированная 1220*2440*12 мм сорт 1","в производстве","шт.",1800,null,null,null,null,"Материал"]
["Фанера ФК 1525*1525*12 мм Сорт 2/2","в производстве","шт.",{"$f":"_xlfn.CEILING.MATH(1360*1.05)","v":1428},null,null,null,null,"Материал"]
["Фанера ФК 1525*1525*12 мм Сорт 2/4","в производстве","шт.",{"$f":"_xlfn.CEILING.MATH(1245*1.05)","v":1308},null,null,null,null,"Материал"]
["Фанера ФК 1525*1525*12 мм Сорт 4/4","в производстве","шт.",{"$f":"_xlfn.CEILING.MATH(730*1.05)","v":767},null,null,null,null,"Материал"]
["Фанера ФК 1525*1525*15 мм Сорт 2/2","в производстве","шт.",{"$f":"_xlfn.CEILING.MATH(1450*1.05)","v":1523},null,null,null,null,"Материал"]
["Фанера ФК 1525*1525*15 мм Сорт 2/4","в производстве","шт.",{"$f":"_xlfn.CEILING.MATH(1280*1.05)","v":1344},null,null,null,null,"Материал"]
["Фанера ФК 1525*1525*15 мм Сорт 4/4","в производстве","шт.",{"$f":"_xlfn.CEILING.MATH(840*1.05)","v":882},null,null,null,null,"Материал"]
["Фанера ФК 1525*1525*18 мм Сорт 2/2","в производстве","шт.",{"$f":"_xlfn.CEILING.MATH(1520*1.05)","v":1596},null,null,null,null,"Материал"]
["Фанера ФК 1525*1525*18 мм Сорт 2/4","в производстве","шт.",{"$f":"_xlfn.CEILING.MATH(1413*1.05)","v":1484},null,null,null,null,"Материал"]
["Фанера ФК 1525*1525*18 мм Сорт 4/4","в производстве","шт.",{"$f":"_xlfn.CEILING.MATH(980*1.05)","v":1029},null,null,null,null,"Материал"]
["Фанера ФК 1525*1525*6 мм Сорт 2/2","в производстве","шт.",{"$f":"_xlfn.CEILING.MATH(680*1.05)","v":714},null,null,null,null,"Материал"]
["Фанера ФК 1525*1525*6 мм Сорт 2/4","в производстве","шт.",{"$f":"_xlfn.CEILING.MATH(590*1.05)","v":620},null,null,null,null,"Материал"]
["Фанера ФК 1525*1525*6 мм Сорт 4/4","в производстве","шт.",{"$f":"_xlfn.CEILING.MATH(380*1.05)","v":399},null,null,null,null,"Материал"]
["Фанера ФСФ 2440*1220*12 мм","в производстве","шт.",1450,23.2,null,null,null,"Материал"]
["Фанера ФСФ 2440*1220*15 мм","в производстве","шт.",1800,29,null,null,null,"Материал"]
["Фанера ФСФ 2440*1220*18 мм Сорт 2/2","в производстве","шт.",{"$f":"_xlfn.CEILING.MATH(2700*1.05)","v":2835},null,null,null,null,"Материал"]
["Фанера ФСФ 2440*1220*18 мм Сорт 2/4","в производстве","шт.",{"$f":"_xlfn.CEILING.MATH(2585*1.05)","v":2715},null,null,null,null,"Материал"]
["Фанера ФСФ 2440*1220*18 мм сорт 4/4","в производстве","шт.",1670,32.15,0.05,null,null,"Материал"]
["Фанера ФСФ 2440*1220*30 мм, сорт 4/4","в производстве","шт.",2247,53.58,null,null,null,"Материал"]
["Фанера ФСФ 2440*1220*6 мм сорт 2/4","в производстве","шт.",1210,10.72,0.02,null,null,"Материал"]
["Фанера ФСФ 2440*1220*6 мм Сорт 4/4","в производстве","шт.",{"$f":"_xlfn.CEILING.MATH(840*1.05)","v":882},null,null,null,null,"Материал"]
["Фанера ФСФ 2500*1525*12 мм Сорт 2/2","в производстве","шт.",{"$f":"_xlfn.CEILING.MATH(2200*1.05)","v":2310},null,null,null,null,"Материал"]
["Фанера ФСФ Е1 1525*1525*15 мм Сорт 2/2","в производстве","шт.",{"$f":"_xlfn.CEILING.MATH(1993*1.05)","v":2093},null,null,null,null,"Материал"]
["Фланец на балку","в производстве","шт.",234.44,null,null,null,null,"Деталь"]
["Фланец на колонну","в производстве","шт.",253.7,null,null,null,null,"Деталь"]
["Хомут \"Т\" ду 32-32","в производстве","шт.",400,null,null,null,null,"Деталь"]
["Хомут для профильной трубы 100 мм (комплект 2 детали)","в производстве","м.п.",315,null,null,null,null,"Деталь"]
["Хомут ду25+ду32","в производстве","шт.",350,null,null,null,null,"Деталь"]
["ХОМУТ КОВАНЫЙ НЕПОВОРОТНЫЙ ZK48-1","перекупное","шт.",200,null,null,null,null,"Деталь"]
["ХОМУТ КОВАНЫЙ НЕПОВОРОТНЫЙ ZK48x60F","перекупное","шт.",359,null,null,null,null,"Деталь"]
["ХОМУТ КОВАНЫЙ ПОВОРОТНЫЙ ZK48-2","перекупное","шт.",220,null,null,null,null,"Деталь"]
["Хомут одинарный (Ø48 мм.)","в производстве","шт.",293,null,null,null,null,"Деталь"]
["Хомут пластиковый","в производстве","шт.",5,null,null,null,null,"Деталь"]
["Цепь 10-1Т(8)","в производстве","м.п.",428,2.2999999999999998,null,null,null,"Материал"]
["Цепь длиннозвеньевая 6","в производстве","шт.",89,1.0499999999999999E-3,null,null,null,"Материал"]
["Цепь длиннозвеньевая 8","в производстве","шт.",147,1.0499999999999999E-3,null,null,null,"Материал"]
["Шайба 10","в производстве","шт.",1.17,6.4999999999999997E-3,null,null,null,"Деталь"]
["Шайба 12","в производстве","шт.",0.94,6.25E-2,null,null,null,"Деталь"]
["Шайба 14","в производстве","шт.",1.78,8.6199999999999992E-3,null,null,null,"Деталь"]
["Шайба 16","в производстве","шт.",2.23,1.1310000000000001E-2,null,null,null,"Деталь"]
["Шайба 6","в производстве","шт.",0.22,9.7999999999999997E-4,null,null,null,"Деталь"]
["Шайба 8","в производстве","шт.",6,null,null,null,null,"Деталь"]
["Шайба кузовная 10","в производстве","шт.",1.8,1.2200000000000001E-2,null,null,null,"Деталь"]
["Шайба кузовная 14","в производстве","шт.",5.4,3.1600000000000003E-2,null,null,null,"Деталь"]
["Шайба кузовная №10","в производстве","шт.",1.77,1.2200000000000001E-2,null,null,null,"Деталь"]
["Шайба кузовная №8","в производстве","шт.",0.87,6.2300000000000003E-3,null,null,null,"Деталь"]
["Шайба пружинная 10","в производстве","шт.",0.56000000000000005,2.5300000000000001E-3,null,null,null,"Деталь"]
["Шайба пружинная 12","в производстве","шт.",0.78,3.8600000000000001E-3,null,null,null,"Деталь"]
["Шайба пружинная 14","в производстве","шт.",1.4,6.0099999999999997E-3,null,null,null,"Деталь"]
["Шайба пружинная 16","в производстве","шт.",2.09,8.9800000000000001E-3,null,null,null,"Деталь"]
["Шайба пружинная 20","перекупное","шт.",3.85,1.528E-2,null,null,null,"Деталь"]
["Шайба пружинная 6","в производстве","м.п.",0.22,8.3000000000000001E-4,null,null,null,"Деталь"]
["Шайба пружинная 8","в производстве","м.п.",0.33,1.8E-3,null,null,null,"Деталь"]
["Шайба фторопласт 10","в производстве","шт.",9,null,null,null,null,"Деталь"]
["Шайба фторопласт 14","в производстве","шт.",11,null,null,null,null,"Деталь"]
["Шар Sorel Gripballs 75 мм","перекупное","шт.",1330,null,null,null,null,"Деталь"]
["Шарик пластиковый 70 мм","перекупное","шт.",5.0149999999999997,null,null,null,null,"Деталь"]
["Шарики пластиковые 70 мм","перекупное","шт.",5.0149999999999997,null,null,null,null,"Деталь"]
["Шарики пластиковые 80 мм","перекупное","шт.",5.7149999999999999,null,null,null,null,"Деталь"]
["Швеллер 10","в производстве","м.п.",250,null,null,null,null,"Материал"]
["Швеллер 12","в производстве","м.п.",310,null,null,null,null,"Материал"]
["Швеллер 14","в производстве","м.п.",400,null,null,null,null,"Материал"]
["Швеллер 16","в производстве","м.п.",541.9,null,null,null,null,"Материал"]
["Швеллер 18","в производстве","м.п.",490,null,null,null,null,"Материал"]
["Швеллер 20","в производстве","м.п.",570,null,null,null,null,"Материал"]
["Швеллер 5","в производстве","м.п.",188,null,null,null,null,"Материал","ActiveWorkbook.Worksheets(\"Öåíû\").Select"]
["Швеллер 6,5","в производстве","м.п.",220,null,null,null,null,"Материал"]
["Швеллер 8","в производстве","м.п.",220,null,null,null,null,"Материал"]
["Шлямбурное ухо 10 мм","перекупное","шт.",110,null,null,null,null,"Деталь"]
["Шнур 2,5 мм (100м)","в производстве","м.п.",1.25,null,null,null,null,"Материал"]
["Шнур 2,5мм (100м)","в производстве","м.п.",1.25,null,null,null,null,"Материал"]
["Шнур полиамидный d 4 мм (100 м)","в производстве","шт.",5.2,null,null,null,null,"Материал"]
["Шнур эластичный вязанный 6 мм","в производстве","м.п.",28,null,null,null,null,"Материал"]
["Шпилька М10х1000 мм","в производстве","шт.",65,0.5,null,null,null,"Деталь"]
["Шпилька М12","в производстве","м.п.",91,0.72099999999999997,null,null,null,"Деталь"]
["Шпилька резьбовая DIN 975 М20*2000","перекупное","шт.",530.25,4.1500000000000004,null,null,null,"Деталь"]
["Шплинт 3,2х16 ГОСТ 397-79","в производстве","шт.",1.5,null,null,null,null,"Деталь"]
["Шплинт 3,2х25 ГОСТ 397-79","в производстве","шт.",1.5,null,null,null,null,"Деталь"]
["Щетка для чистки зацепов","перекупное","шт.",102,null,null,null,null,"Деталь"]

{"sheet":"Лист1","index":1,"n_rows":0,"n_cols":0,"rows_kept":0,"cut":false,"hidden":false,"merged":[]}